bitfinex-derivatives/quotes_ETHF0:USTF0_20260209
["timestamp","ask_amount","ask_price","bid_price","bid_amount"]
[1770661763609,11.26005893,2116.2,2114.9,6.66308257]
[1770661763813,11.26005893,2116.2,2115.3,6.66308257]
[1770661764112,11.26441927,2116.2,2115.6,0.1]
[1770661765309,0.00436034,2116.2,2115.6,6.76308257]
[1770661766913,11.26005893,2116.6,2115.6,6.76308257]
[1770661768015,11.26505055,2116.6,2115.6,6.76308257]
[1770661770513,11.26505055,2116.6,2115.8,6.05999592]
[1770661770819,11.26005893,2117.0,2116.0,6.05999592]
[1770661771521,11.26005893,2117.0,2116.2,6.05999592]
[1770661771715,11.26402825,2117.0,2116.2,6.05999592]
[1770661772020,11.26402825,2117.0,2116.0,6.02211934]
[1770661773615,11.26402825,2117.0,2116.0,6.25857934]
[1770661777720,11.26402825,2117.0,2116.0,6.02211934]
[1770661777918,11.26402825,2117.0,2115.8,6.35894783]
[1770661780323,11.26402825,2117.0,2115.9,6.45847527]
[1770661780924,11.26402825,2117.0,2115.8,2.82437555]
[1770661781221,11.26402825,2117.0,2115.8,9.28285082]
[1770661781429,14.0390621,2117.0,2115.8,9.28285082]
[1770661781821,14.0390621,2117.0,2115.8,2.82437555]
[1770661782022,11.26005893,2116.8,2115.7,2.82437555]
[1770661782831,11.26005893,2116.8,2115.6,2.92437555]
[1770661783024,11.26005893,2116.6,2115.6,0.1]
[1770661784129,14.03509278,2116.6,2115.6,0.1]
[1770661786234,14.03509278,2116.6,2115.6,7.0079815]
[1770661786832,14.03509278,2116.6,2115.6,0.1]
[1770661787033,14.03509278,2116.6,2115.6,7.0079815]
[1770661788031,14.03509278,2116.6,2115.3,2.82845528]
[1770661788032,11.56021893,2116.4,2115.3,2.82845528]
[1770661788234,11.56021893,2116.4,2115.3,6.82975183]
[1770661788430,11.56021893,2116.4,2115.6,6.8256721]
[1770661789337,11.56021893,2116.4,2115.8,6.8256721]
[1770661790235,11.56021893,2116.8,2115.8,6.8256721]
[1770661790738,11.56021893,2116.8,2115.9,6.77777141]
[1770661790940,11.56021893,2116.8,2116.0,6.77777141]
[1770661791139,11.56418825,2117.0,2116.2,6.77777141]
[1770661791331,11.56021893,2117.7,2116.7,6.77777141]
[1770661791534,11.56021893,2117.7,2116.8,6.77777141]
[1770661792435,11.56558703,2117.7,2116.8,6.7838344]
[1770661794032,11.56558703,2117.7,2116.8,0.00606299]
[1770661798942,11.56558703,2117.7,2116.3,7.45996149]
[1770661799541,11.56558703,2117.7,2116.1,10.52685003]
[1770661799843,11.56558703,2117.7,2116.1,7.70247448]
[1770661800145,11.56558703,2117.7,2116.1,7.70660234]
[1770661800345,11.56558703,2117.7,2116.2,7.45917969]
[1770661800945,11.56558703,2117.7,2116.6,5.81539]
[1770661801244,11.56558703,2117.7,2117.1,7.45917969]
[1770661801446,0.0053681,2117.7,2117.1,7.45917969]
[1770661801744,11.56558703,2117.7,2117.1,7.45917969]
[1770661801944,11.56558703,2117.7,2116.5,7.4707778]
[1770661803343,11.56558703,2117.7,2116.3,7.4707778]
[1770661803547,11.56021893,2117.6,2116.3,7.4707778]
[1770661803938,11.56021893,2117.6,2116.3,7.7071978]
[1770661804135,11.56021893,2117.6,2116.3,10.53157335]
[1770661804340,11.56021893,2117.6,2116.5,7.57260314]
[1770661805139,0.9053681,2117.7,2116.9,7.57260314]
[1770661805336,12.46558703,2117.7,2116.9,7.57260314]
[1770661805541,12.46558703,2117.7,2116.8,3.18620423]
[1770661805542,0.9053681,2117.7,2117.1,7.57260314]
[1770661805744,11.56021893,2118.1,2117.3,7.60451457]
[1770661806753,0.00410773,2118.1,2117.3,7.60451457]
[1770661806946,11.56021893,2118.5,2117.5,7.60451457]
[1770661807247,11.56021893,2118.5,2117.6,7.60451457]
[1770661807645,11.56021893,2119.1,2117.6,7.60451457]
[1770661807840,11.56021893,2119.1,2117.8,13.42673761]
[1770661808147,0.00541302,2119.1,2118.3,7.61464761]
[1770661809152,11.56021893,2119.5,2118.3,7.61464761]
[1770661809347,11.56021893,2120.3,2118.7,7.60923459]
[1770661809844,30.553,2120.7,2118.7,7.60923459]
[1770661809845,11.56021893,2120.6,2119.5,7.6274471]
[1770661810047,11.3317793,2120.8,2120.1,7.6274471]
[1770661810243,41.23861319,2122.9,2120.8,7.58829161]
[1770661810556,11.56021893,2124.0,2122.7,7.58829161]
[1770661810847,11.56021893,2123.8,2122.1,7.85903072]
[1770661811054,11.56021893,2123.8,2121.5,4.96584]
[1770661811055,11.56021893,2123.5,2121.8,7.58829161]
[1770661811257,11.56021893,2122.9,2121.2,7.58829161]
[1770661811449,11.56021893,2122.8,2121.2,7.58829161]
[1770661811756,11.56021893,2121.6,2120.0,8.14523273]
[1770661811962,5.80223,2121.4,2119.7,8.14523273]
[1770661812150,11.56021893,2121.2,2119.4,8.14523273]
[1770661812349,11.56489413,2121.2,2119.4,8.15019227]
[1770661812949,11.56021893,2121.1,2119.4,8.15019227]
[1770661813353,8.75731943,2121.2,2119.4,0.00495954]
[1770661813354,11.56021893,2120.7,2119.4,0.00495954]
[1770661813549,11.56021893,2120.3,2118.5,8.14523273]
[1770661814446,11.56021893,2120.3,2118.5,8.15098777]
[1770661814644,11.56021893,2120.3,2118.8,8.03373307]
[1770661815051,11.56021893,2120.3,2119.2,8.03373307]
[1770661815352,11.56021893,2120.6,2119.6,8.03373307]
[1770661816050,11.56021893,2120.6,2119.2,24.495]
[1770661816245,11.56021893,2120.6,2118.9,7.97518983]
[1770661816453,11.56021893,2120.6,2119.1,2.94983423]
[1770661816651,11.56021893,2120.6,2119.2,7.97518983]
[1770661816856,11.56021893,2120.6,2119.1,2.94983423]
[1770661817056,11.56021893,2120.6,2118.7,7.97518983]
[1770661817057,10.61824417,2120.5,2118.7,7.97518983]
[1770661817460,10.61824417,2120.5,2118.8,7.97518983]
[1770661819757,10.61824417,2120.5,2119.0,7.08598214]
[1770661821257,10.61824417,2120.5,2118.6,7.08598214]
[1770661822254,10.61824417,2120.5,2118.8,7.05795001]
[1770661822653,11.15867269,2120.4,2118.8,7.05795001]
[1770661822854,11.15867269,2120.4,2118.5,7.06370505]
[1770661824060,11.15867269,2120.4,2118.9,7.05576455]
[1770661824563,11.15867269,2120.4,2118.9,7.29189455]
[1770661824752,11.15867269,2120.7,2119.4,7.05576455]
[1770661826164,11.15867269,2120.7,2119.6,7.15189933]
[1770661826567,11.15867269,2121.1,2119.6,7.15189933]
[1770661827167,11.15867269,2121.1,2119.3,7.15189933]
[1770661829365,11.15867269,2120.7,2119.0,7.22671519]
[1770661829768,11.15867269,2120.5,2119.0,7.22671519]
[1770661829969,0.23595,2120.6,2118.5,0.00575504]
[1770661829970,11.15867269,2120.1,2118.5,0.00575504]
[1770661830561,11.15867269,2119.9,2118.5,0.00575504]
[1770661830958,11.15867269,2119.7,2118.5,0.00575504]
[1770661831262,11.16287658,2119.7,2118.5,0.00575504]
[1770661833863,11.15867269,2119.3,2117.6,7.7035311]
[1770661834068,11.15867269,2119.1,2117.3,7.47301614]
[1770661834270,11.15867269,2118.9,2117.3,7.47301614]
[1770661834772,11.15867269,2118.7,2117.1,0.23634]
[1770661835065,30.522,2118.9,2117.1,0.00371688]
[1770661835066,11.15867269,2118.5,2117.1,0.00371688]
[1770661836064,11.15867269,2118.3,2116.5,0.2364]
[1770661836267,11.15867269,2117.9,2116.0,7.26328091]
[1770661836963,11.15867269,2117.9,2115.4,7.26328091]
[1770661836964,11.15867269,2117.2,2115.4,7.26328091]
[1770661837166,11.15867269,2117.1,2115.8,7.26328091]
[1770661837373,11.15867269,2117.1,2116.0,7.26328091]
[1770661838468,11.15867269,2117.1,2116.2,6.82591226]
[1770661838662,0.00514586,2117.2,2116.2,6.82591226]
[1770661838861,0.00018631,2117.2,2116.2,6.82591226]
[1770661839573,0.00018631,2117.2,2116.6,6.82591226]
[1770661839869,11.15867269,2118.0,2116.6,6.82591226]
[1770661840669,11.16270311,2118.0,2116.3,6.79936961]
[1770661841265,11.15867269,2117.8,2115.6,6.79936961]
[1770661841472,11.15867269,2117.6,2115.6,6.79936961]
[1770661843768,11.15867269,2117.6,2114.8,7.04192521]
[1770661843769,11.15867269,2116.8,2114.8,7.04192521]
[1770661843961,0.23636,2116.9,2114.8,7.04192521]
[1770661843962,11.15867269,2116.6,2114.8,7.04192521]
[1770661844166,11.15867269,2116.6,2114.5,7.04600549]
[1770661844366,11.15867269,2116.2,2114.4,0.23663]
[1770661844668,11.15867269,2116.0,2114.2,7.04600549]
[1770661844868,11.16385906,2116.0,2114.2,7.0508865]
[1770661845575,11.16385906,2116.0,2114.2,0.00488101]
[1770661845871,11.16385906,2116.0,2114.2,6.89185606]
[1770661846167,11.415233,2115.6,2114.2,0.00488101]
[1770661846470,11.415233,2115.4,2114.2,0.00488101]
[1770661846870,11.415233,2115.4,2114.2,6.89185606]
[1770661847266,11.415233,2115.7,2114.8,7.45951505]
[1770661847467,0.00518637,2116.0,2114.8,7.45951505]
[1770661847468,11.42041937,2116.0,2114.8,7.45951505]
[1770661847870,0.00518637,2116.0,2115.1,0.23656]
[1770661848065,0.00518637,2116.0,2115.2,7.44053652]
[1770661849776,11.42041937,2116.0,2115.2,7.44053652]
[1770661851071,0.00518637,2116.0,2115.2,7.44053652]
[1770661853170,0.00518637,2116.0,2115.4,7.74757066]
[1770661853377,11.415233,2117.5,2116.2,7.74238429]
[1770661854279,11.41929298,2117.5,2116.2,7.74625539]
[1770661854866,11.41929298,2117.5,2116.4,7.74478756]
[1770661855074,11.41929298,2117.5,2116.6,7.74478756]
[1770661855780,0.00405998,2117.5,2116.6,7.74478756]
[1770661856677,11.41929298,2117.5,2116.6,7.74478756]
[1770661857773,11.41929298,2117.5,2116.3,8.21736654]
[1770661858677,11.41929298,2117.5,2116.3,8.45378654]
[1770661859381,0.00405998,2117.5,2116.3,8.45378654]
[1770661859579,0.00405998,2117.5,2116.6,8.21736654]
[1770661859781,11.415233,2118.7,2117.1,6.05015]
[1770661859977,11.415233,2118.7,2117.2,8.19928854]
[1770661860374,11.415233,2118.7,2117.4,8.19928854]
[1770661860781,11.41878132,2118.7,2117.6,8.19928854]
[1770661861168,0.00354832,2118.7,2117.7,8.43555854]
[1770661861375,11.41878132,2118.7,2117.7,0.00567556]
[1770661861571,11.41878132,2118.7,2117.7,7.98267196]
[1770661861779,0.00354832,2118.7,2117.9,7.9769964]
[1770661862082,0.00354832,2118.7,2117.7,0.00567556]
[1770661862083,11.41878132,2118.7,2117.7,0.00567556]
[1770661862977,11.41878132,2118.7,2117.7,7.98267196]
[1770661865678,0.00354832,2118.7,2117.7,14.03120196]
[1770661865878,11.415233,2120.2,2118.4,7.80985446]
[1770661866077,11.415233,2120.2,2118.6,7.80985446]
[1770661866479,11.415233,2120.2,2118.8,7.80985446]
[1770661866787,11.41873662,2120.2,2119.0,7.80985446]
[1770661866981,0.00350362,2120.2,2119.2,7.80985446]
[1770661867180,0.00350362,2120.2,2119.2,7.81508117]
[1770661867586,0.00350362,2120.2,2119.4,7.80985446]
[1770661867778,11.41873662,2120.2,2119.4,7.80985446]
[1770661867986,11.41873662,2120.2,2119.2,0.00522671]
[1770661868685,11.415233,2120.0,2118.2,7.65335048]
[1770661869079,11.415233,2119.8,2118.2,7.65335048]
[1770661869680,11.415233,2119.8,2118.2,7.65806159]
[1770661869880,11.415233,2119.6,2118.2,0.00471111]
[1770661871082,11.415233,2119.6,2118.2,7.71785481]
[1770661872387,11.415233,2119.9,2119.0,7.71631899]
[1770661872689,11.415233,2120.1,2119.0,7.71631899]
[1770661872882,11.415233,2120.1,2119.2,7.71631899]
[1770661874084,0.00350362,2120.2,2119.2,7.71631899]
[1770661874684,0.00350362,2120.2,2119.4,7.51807072]
[1770661875580,11.415233,2120.7,2119.6,7.49653108]
[1770661875885,11.37939137,2121.4,2119.8,7.55973308]
[1770661876479,11.38538519,2121.4,2119.9,7.79576308]
[1770661878887,11.38538519,2121.4,2119.8,0.00440765]
[1770661879082,11.38538519,2121.4,2119.8,7.61065669]
[1770661880085,30.534,2122.4,2119.8,7.61065669]
[1770661880086,11.08884587,2122.0,2121.0,7.60111777]
[1770661880679,11.08884587,2122.3,2121.1,0.23589]
[1770661880876,11.08884587,2122.3,2121.2,7.60111777]
[1770661881185,11.094378,2122.3,2121.2,7.60111777]
[1770661881680,11.094378,2122.3,2120.6,7.54721728]
[1770661882387,11.08884587,2122.1,2120.1,7.54721728]
[1770661882990,11.08884587,2121.9,2119.8,7.55162493]
[1770661883183,11.08884587,2121.7,2119.8,7.55162493]
[1770661883889,11.08884587,2121.3,2119.8,0.00440765]
[1770661884784,11.08884587,2121.3,2119.8,7.59509226]
[1770661885591,11.08884587,2121.1,2119.8,0.00440765]
[1770661885890,11.08884587,2121.1,2119.8,7.78076699]
[1770661886583,11.08884587,2121.1,2119.8,7.54473699]
[1770661888589,11.08884587,2121.1,2120.0,7.52357816]
[1770661889591,9.53478963,2122.2,2120.4,7.52357816]
[1770661889592,11.08884587,2122.2,2120.4,7.52357816]
[1770661890188,11.08884587,2122.2,2120.5,0.23596]
[1770661890387,11.08884587,2122.2,2120.6,7.52349972]
[1770661890788,11.08884587,2122.0,2120.3,7.52349972]
[1770661891082,11.08884587,2122.0,2120.5,7.52349972]
[1770661893490,11.08884587,2121.8,2120.0,7.53639907]
[1770661893688,11.08884587,2121.2,2119.8,0.00440765]
[1770661894295,11.08884587,2121.0,2119.8,0.00440765]
[1770661894996,11.08884587,2121.0,2118.9,27.84270963]
[1770661894997,11.08884587,2120.8,2119.1,7.54827712]
[1770661895196,11.08884587,2120.6,2118.9,10.3433276]
[1770661895390,11.08884587,2120.4,2118.7,7.78884477]
[1770661895897,11.08884587,2120.7,2119.6,7.49284241]
[1770661896093,11.09375025,2120.4,2119.3,7.49284241]
[1770661896394,11.09375025,2120.4,2119.0,7.49284241]
[1770661898395,11.09375025,2120.4,2118.7,7.50430815]
[1770661898996,11.08884587,2120.2,2118.7,7.50430815]
[1770661901789,11.08884587,2120.0,2118.7,7.50430815]
[1770661901997,11.08884587,2120.0,2118.7,0.00426569]
[1770661903494,11.08884587,2119.8,2118.1,7.37938541]
[1770661904489,11.08884587,2119.6,2118.1,0.00415922]
[1770661905900,10.56620242,2119.4,2118.1,0.00415922]
[1770661906101,10.56620242,2119.0,2117.4,7.38601424]
[1770661907195,10.56620242,2119.0,2117.4,7.39040835]
[1770661908007,10.56620242,2119.0,2117.6,7.34641865]
[1770661908402,10.56620242,2119.0,2117.8,7.34641865]
[1770661908601,10.56620242,2119.3,2118.2,7.34641865]
[1770661909206,10.56620242,2119.8,2118.4,7.34641865]
[1770661909402,10.56620242,2120.3,2118.6,7.34641865]
[1770661909802,10.56620242,2120.3,2118.8,7.35443108]
[1770661910704,10.56620242,2120.3,2119.0,7.35443108]
[1770661910901,0.00490438,2120.4,2119.4,7.35443108]
[1770661911102,10.56620242,2120.9,2119.7,0.23605]
[1770661911403,10.56620242,2120.9,2119.8,7.3495267]
[1770661911603,10.56620242,2121.8,2120.0,7.3495267]
[1770661911809,10.56620242,2121.8,2120.2,7.34621159]
[1770661912008,10.57035216,2121.8,2120.4,7.34621159]
[1770661912213,10.57035216,2121.8,2120.3,6.04116]
[1770661912214,0.00414974,2121.8,2120.6,7.34621159]
[1770661912409,0.00414974,2121.8,2120.6,7.35005832]
[1770661912606,10.57035216,2121.8,2120.6,7.35005832]
[1770661912806,10.57035216,2121.8,2120.6,0.00384673]
[1770661915320,10.57035216,2121.8,2120.6,7.39880923]
[1770661916011,0.00414974,2121.8,2120.8,7.41722544]
[1770661916413,10.56620242,2122.8,2121.5,7.4130757]
[1770661917110,10.56620242,2123.8,2121.7,7.4130757]
[1770661917311,10.56620242,2123.6,2121.7,7.4130757]
[1770661917911,10.56620242,2123.6,2121.9,7.31089285]
[1770661918109,10.56620242,2123.6,2122.1,7.31089285]
[1770661918407,10.56620242,2123.4,2122.1,0.00471824]
[1770661918605,10.56620242,2123.2,2122.1,0.00471824]
[1770661918805,10.56620242,2123.2,2121.5,7.31089285]
[1770661919706,10.56620242,2123.2,2121.5,7.31584163]
[1770661920912,10.56620242,2123.0,2121.5,7.45924152]
[1770661922315,10.56620242,2123.3,2121.9,7.29073379]
[1770661922516,10.56620242,2123.3,2122.1,7.29073379]
[1770661923017,10.56620242,2123.7,2122.5,7.29073379]
[1770661923313,0.00543179,2123.8,2122.4,0.23575]
[1770661923314,0.00543179,2123.8,2122.7,7.29073379]
[1770661923913,6.02741,2125.2,2122.7,7.29073379]
[1770661923914,10.56620242,2124.6,2123.1,9.76795963]
[1770661924218,10.56620242,2124.6,2123.1,0.23567]
[1770661924419,10.56620242,2124.6,2123.2,7.1872705]
[1770661924809,10.56620242,2124.6,2122.9,7.1872705]
[1770661925006,10.57024541,2124.6,2122.9,7.19123329]
[1770661925717,10.57024541,2124.6,2123.1,7.1872705]
[1770661926220,10.56620242,2124.4,2122.9,0.00396279]
[1770661926416,10.56620242,2124.2,2122.9,0.00396279]
[1770661926614,10.56620242,2124.2,2122.9,7.20760922]
[1770661926917,30.491,2124.5,2123.0,7.20364643]
[1770661926918,10.56620242,2124.5,2123.0,7.20364643]
[1770661927117,10.56620242,2126.0,2123.8,7.20364643]
[1770661927312,10.56620242,2126.0,2123.7,0.2356]
[1770661927313,10.56620242,2126.0,2124.0,7.20364643]
[1770661927510,10.56620242,2126.0,2124.2,7.20364643]
[1770661927713,10.56620242,2125.8,2123.6,7.30893017]
[1770661927915,10.80158242,2125.7,2123.6,7.30893017]
[1770661928318,10.56620242,2126.3,2124.6,7.30893017]
[1770661928710,10.56620242,2126.1,2124.6,7.30893017]
[1770661929917,10.57109789,2126.1,2124.6,7.31310086]
[1770661930117,10.57109789,2126.1,2124.7,7.37429184]
[1770661930622,10.57109789,2126.1,2124.6,0.00417069]
[1770661930623,10.56620242,2125.9,2124.6,0.00417069]
[1770661930815,10.80159242,2125.6,2124.0,7.37429184]
[1770661931214,10.80159242,2125.6,2123.4,3.97033963]
[1770661931215,10.56620242,2125.3,2123.5,7.37429184]
[1770661931615,10.56620242,2125.3,2123.6,0.23561]
[1770661931818,10.56620242,2125.3,2123.9,7.38011843]
[1770661932117,10.56620242,2125.6,2124.1,7.38011843]
[1770661932915,10.56620242,2125.6,2123.7,7.38011843]
[1770661933223,10.56620242,2125.4,2123.7,7.38011843]
[1770661934517,10.56620242,2125.4,2123.9,7.25983347]
[1770661935621,10.77080167,2125.2,2123.6,7.23528228]
[1770661936133,10.77080167,2125.2,2124.0,7.23518595]
[1770661936520,10.77080167,2125.2,2123.6,7.2410226]
[1770661936725,10.77080167,2125.0,2123.6,0.00583665]
[1770661936920,10.77080167,2124.8,2123.6,0.00583665]
[1770661937319,0.23549,2124.7,2123.6,0.00583665]
[1770661937631,10.77080167,2124.6,2123.6,0.00583665]
[1770661937827,10.77543472,2124.6,2123.6,0.00583665]
[1770661939631,10.77543472,2124.6,2123.6,7.10509702]
[1770661941029,10.77543472,2124.6,2123.6,0.00583665]
[1770661942828,10.77543472,2124.6,2123.6,7.10275162]
[1770661944026,0.00463305,2124.6,2123.8,7.00273309]
[1770661944230,10.93028839,2125.2,2124.0,7.00273309]
[1770661944621,10.93028839,2125.2,2124.2,6.99810004]
[1770661945230,10.93439566,2125.2,2124.2,6.99810004]
[1770661945737,0.00410727,2125.2,2124.6,7.10961469]
[1770661946031,10.93439566,2125.2,2124.1,7.10961469]
[1770661947033,10.93439566,2125.2,2123.7,7.10961469]
[1770661947236,10.93028839,2125.0,2123.6,0.00583665]
[1770661947436,10.93028839,2124.8,2123.6,0.00583665]
[1770661947731,2.74691859,2125.2,2123.6,0.00583665]
[1770661947732,10.93028839,2124.6,2123.6,0.00583665]
[1770661948328,10.93028839,2124.6,2123.1,7.10961469]
[1770661948737,10.93028839,2124.4,2122.8,7.33868236]
[1770661949433,10.93028839,2124.4,2122.8,7.34394921]
[1770661950133,10.93028839,2124.4,2122.8,7.57963921]
[1770661950331,10.93028839,2124.4,2122.8,7.34394921]
[1770661950530,10.93028839,2124.2,2122.8,0.00526685]
[1770661950738,10.93028839,2123.8,2122.8,0.00526685]
[1770661950933,0.2356,2123.7,2122.2,7.3540262]
[1770661951133,10.93028839,2123.6,2122.2,7.3540262]
[1770661951336,10.93028839,2123.4,2121.9,7.3540262]
[1770661951538,10.93028839,2123.4,2122.3,7.3540262]
[1770661951933,10.93481772,2123.4,2122.3,7.35805816]
[1770661952131,0.00452933,2123.4,2122.3,7.35805816]
[1770661952334,0.00452933,2123.4,2122.5,7.30322267]
[1770661953940,10.93028839,2124.0,2122.7,7.22841604]
[1770661954937,10.93416685,2124.0,2122.7,7.22841604]
[1770661955442,10.93028839,2124.3,2123.1,7.22388671]
[1770661955737,5.79141,2125.4,2123.0,0.23568]
[1770661955738,10.93028839,2124.9,2123.5,7.22414469]
[1770661955943,10.93028839,2124.9,2123.7,7.22414469]
[1770661956142,10.93028839,2124.9,2123.9,7.22414469]
[1770661956438,10.93404528,2124.9,2123.9,7.23013677]
[1770661958048,10.93404528,2124.9,2123.9,0.00599208]
[1770661958440,0.05,2125.1,2124.3,6.98641874]
[1770661958641,10.93028839,2125.5,2124.5,6.98641874]
[1770661958945,10.93028839,2126.2,2124.5,6.98641874]
[1770661959152,10.93028839,2126.2,2124.7,6.93641874]
[1770661959440,10.93434508,2126.2,2124.7,6.93641874]
[1770661959644,10.93434508,2126.2,2124.9,6.93641874]
[1770661960644,10.93434508,2126.2,2125.1,6.95152322]
[1770661960835,10.93434508,2126.2,2125.3,6.95152322]
[1770661961036,0.00405669,2126.2,2125.3,6.95152322]
[1770661961244,0.00405669,2126.2,2125.4,0.23541]
[1770661961447,41.23861319,2127.4,2125.4,0.23541]
[1770661961448,10.93028839,2126.8,2125.6,0.23539]
[1770661961741,10.93028839,2127.9,2126.7,7.04228014]
[1770661962544,10.93416268,2127.9,2126.4,7.04228014]
[1770661964240,10.93416268,2127.9,2126.1,7.10763787]
[1770661964751,10.93416268,2127.9,2126.3,7.10763787]
[1770661965349,10.93416268,2127.9,2126.5,7.06485498]
[1770661966653,10.93416268,2127.9,2125.8,7.05757451]
[1770661967953,11.16930268,2127.9,2125.8,7.05757451]
[1770661968344,10.93416268,2127.9,2126.2,7.14367191]
[1770661968544,10.93416268,2127.9,2126.4,7.14367191]
[1770661968744,10.93416268,2127.9,2126.6,7.14367191]
[1770661969144,0.00387429,2127.9,2126.8,7.14367191]
[1770661969345,0.00387429,2127.9,2127.0,7.14367191]
[1770661969546,0.00387429,2127.9,2127.0,7.14962487]
[1770661969743,11.43356897,2127.9,2127.0,0.00595296]
[1770661971150,11.42969468,2127.7,2126.1,6.98095233]
[1770661972255,11.42969468,2127.7,2126.1,6.98689198]
[1770661973147,0.23517,2127.6,2126.1,6.98689198]
[1770661973352,11.42969468,2127.5,2126.1,0.00593965]
[1770661973755,11.42969468,2127.5,2126.1,6.17509049]
[1770661974348,11.42969468,2127.8,2126.7,6.16915084]
[1770661974549,0.00387429,2127.9,2126.8,6.16915084]
[1770661974748,0.00387429,2127.9,2127.0,6.16915084]
[1770661975157,11.42969468,2128.4,2127.2,6.16915084]
[1770661976054,11.43478197,2128.4,2127.2,6.16915084]
[1770661976853,11.43478197,2128.4,2126.6,5.78781]
[1770661976854,11.43478197,2128.4,2126.6,6.45911452]
[1770661977053,11.42969468,2128.2,2126.6,6.22383452]
[1770661977454,11.42969468,2128.2,2126.8,6.22383452]
[1770661978757,11.42969468,2128.2,2126.5,6.3342782]
[1770661979757,11.42969468,2128.2,2126.8,0.23526]
[1770661979949,11.42969468,2128.2,2126.9,6.20694669]
[1770661980456,11.66480468,2128.2,2126.4,6.20694669]
[1770661981053,11.42969468,2128.1,2126.4,6.20694669]
[1770661981261,11.42969468,2127.9,2126.4,6.20694669]
[1770661982056,11.42969468,2127.7,2126.4,6.20694669]
[1770661982260,11.42969468,2127.5,2126.1,5.06442217]
[1770661982853,11.42969468,2127.5,2126.1,0.00593965]
[1770661983558,5.78483,2127.8,2126.1,0.00593965]
[1770661983559,11.42969468,2127.3,2126.1,0.00593965]
[1770661983858,11.42969468,2126.6,2125.1,5.10654243]
[1770661984766,11.4344037,2126.6,2125.1,5.11015253]
[1770661985762,11.42969468,2126.4,2125.1,5.11015253]
[1770661985964,11.42969468,2126.4,2125.1,0.0036101]
[1770661986667,11.42969468,2126.2,2125.1,0.0036101]
[1770661987168,11.42969468,2126.0,2124.2,5.04608143]
[1770661987364,11.42969468,2125.8,2124.2,5.04608143]
[1770661987564,11.42969468,2125.8,2124.4,5.04608143]
[1770661988369,11.42969468,2125.8,2124.4,5.04998975]
[1770661988578,11.42969468,2125.8,2124.8,5.02863832]
[1770661988772,11.42969468,2126.4,2125.0,5.02863832]
[1770661989269,11.42969468,2126.4,2125.2,5.02863832]
[1770661989667,11.42969468,2126.4,2124.8,5.05671787]
[1770661989871,11.42969468,2126.4,2124.9,5.05671787]
[1770661990066,11.42969468,2126.4,2125.1,5.05671787]
[1770661991773,0.00470902,2126.6,2125.3,5.05671787]
[1770661992268,11.4344037,2126.6,2125.5,5.0702859]
[1770661992468,11.4344037,2126.6,2125.2,5.0702859]
[1770661992674,11.4344037,2126.6,2124.9,5.0702859]
[1770661993471,11.42969468,2126.4,2124.9,5.0702859]
[1770661996173,11.01596462,2126.6,2125.2,5.24122313]
[1770661996580,11.01596462,2126.6,2125.5,5.00578313]
[1770661997581,5.78488,2127.8,2126.6,5.23635411]
[1770661997582,11.0112556,2127.8,2126.6,5.23635411]
[1770661998574,0.0057234,2127.8,2126.6,11.02943306]
[1770661998776,0.0057234,2127.8,2126.9,4.99983639]
[1770661998985,11.4553238,2127.8,2126.9,4.99983639]
[1770661999386,11.4553238,2127.8,2126.6,0.00504895]
[1770661999779,11.4553238,2127.8,2125.8,4.17420795]
[1770661999780,11.4496004,2127.6,2125.8,2.79112301]
[1770661999984,11.4496004,2127.2,2125.7,5.0070772]
[1770662000286,11.4496004,2127.0,2125.4,5.0070772]
[1770662000784,11.4496004,2127.0,2125.4,5.01141599]
[1770662000981,11.4496004,2126.8,2125.4,0.00433879]
[1770662001181,11.4496004,2126.6,2125.4,0.00433879]
[1770662001383,11.4496004,2126.6,2125.4,5.01141599]
[1770662001675,11.4496004,2126.6,2125.4,0.00433879]
[1770662001881,11.4496004,2126.6,2125.4,5.03103428]
[1770662002977,11.4496004,2126.6,2125.4,0.00433879]
[1770662005189,11.4496004,2126.6,2125.4,5.0046687]
[1770662006388,11.4496004,2126.6,2125.4,0.00433879]
[1770662006981,11.4496004,2126.6,2125.5,5.21734698]
[1770662007187,11.4496004,2127.1,2125.5,5.21734698]
[1770662009184,11.4496004,2127.1,2125.6,10.77802676]
[1770662009387,11.4496004,2127.4,2126.4,4.98725676]
[1770662009590,11.4496004,2127.4,2126.0,4.98725676]
[1770662009994,11.4496004,2127.4,2126.4,4.99470915]
[1770662010786,11.4496004,2127.4,2126.1,4.99470915]
[1770662010987,11.4496004,2127.4,2125.9,4.99470915]
[1770662011194,11.4496004,2127.2,2125.6,4.99470915]
[1770662011986,11.4496004,2127.0,2125.5,2.79181435]
[1770662012185,11.4496004,2127.0,2125.4,7.79459164]
[1770662012391,11.4496004,2127.0,2125.5,4.9984385]
[1770662014087,11.4496004,2127.3,2126.3,5.14725579]
[1770662014689,0.0057234,2127.8,2126.5,5.14725579]
[1770662014690,11.4496004,2127.7,2126.5,5.14725579]
[1770662016091,0.0057234,2127.8,2126.7,5.16931995]
[1770662016787,0.0057234,2127.8,2126.9,5.16931995]
[1770662016988,0.0057234,2127.8,2127.1,5.16931995]
[1770662017188,11.4496004,2127.7,2127.0,0.23524]
[1770662017388,11.4496004,2127.7,2126.9,0.0042736]
[1770662017589,0.0057234,2127.8,2126.9,5.40883355]
[1770662018691,11.4553238,2127.8,2126.9,5.17359355]
[1770662019799,0.0057234,2127.8,2126.9,5.17359355]
[1770662020896,11.4553238,2127.8,2126.9,5.17359355]
[1770662021499,0.0057234,2127.8,2127.1,5.17741971]
[1770662022198,35.91561055,2128.9,2127.3,5.18647507]
[1770662022199,11.4496004,2128.4,2127.3,5.18647507]
[1770662022400,3.0813263,2130.3,2128.6,5.78259]
[1770662022697,11.58579753,2130.6,2128.7,25.00677892]
[1770662022894,11.58579753,2130.6,2129.0,2.77677892]
[1770662023092,11.59166317,2130.6,2129.0,0.00420196]
[1770662023298,11.58579753,2130.1,2129.0,0.00420196]
[1770662023600,11.58579753,2130.1,2129.0,0.22078858]
[1770662024193,11.58579753,2130.1,2129.2,0.21658662]
[1770662024499,11.47750422,2130.5,2129.2,0.21658662]
[1770662024800,11.47750422,2130.4,2129.2,0.21658662]
[1770662025100,11.48336986,2130.6,2129.2,0.21658662]
[1770662025295,11.47750422,2130.4,2129.2,0.21658662]
[1770662025604,11.47750422,2130.4,2129.0,0.00420196]
[1770662025791,11.52143272,2129.8,2129.0,0.00420196]
[1770662026301,11.52143272,2129.3,2128.2,0.11276946]
[1770662026497,11.52143272,2130.5,2128.2,0.11276946]
[1770662026696,11.52143272,2130.2,2128.3,0.11276946]
[1770662026896,11.52143272,2130.2,2128.4,0.11276946]
[1770662027100,11.52143272,2130.2,2128.8,0.11276946]
[1770662027397,11.52143272,2130.1,2128.8,0.00464234]
[1770662027991,0.00586564,2130.6,2128.8,0.00464234]
[1770662027992,0.00586564,2130.6,2129.3,5.78065]
[1770662028295,0.00586564,2130.6,2128.8,0.00464234]
[1770662028296,11.57781745,2134.2,2132.2,6.00732]
[1770662028490,11.57781745,2134.2,2132.1,9.7280709]
[1770662028697,11.57781745,2134.2,2132.5,0.23463]
[1770662028902,11.57781745,2134.0,2131.8,3.7204609]